[Event "FIDE WCCC Open-10 2024"]
[Site "Montesilvano"]
[Date "2024.11.20"]
[Round "6.12"]
[White "Buklaho, Ignacy"]
[Black "Filipovs, Sergejs"]
[Result "1/2-1/2"]
[ECO "C54"]
[WhiteElo "1822"]
[BlackElo "2012"]
[Annotator "NA RC"]
[PlyCount "48"]
[EventDate "2024.11.18"]
[EventType "swiss"]
[EventCountry "ITA"]
[SourceTitle "playchess.com"]
[Source "ChessBase"]
[SourceQuality "1"]
[TimeControl "5400+30"]

1. e4 {[%emt 0:00:09]} e5 {[%emt 0:00:04]} 2. Nf3 {[%emt 0:00:11]} Nc6 {[%emt 0:00:05]} 3. Bc4 {[%emt 0:00:08]} Bc5 {[%emt 0:00:06]} 4. c3 {[%emt 0:00:06]} Nf6 {[%emt 0:00:06]} 5. d3 {[%emt 0:00:05]} O-O {[%emt 0:00:06]} 6. O-O {[%emt 0:00:07]} d5 {[%emt 0:00:05]} 7. exd5 {[%emt 0:00:52]} Nxd5 {[%emt 0:00:04]} 8. Re1 {[%emt 0:00:47]} Bg4 {[%emt 0:00:07]} 9. h3 {[%emt 0:00:44]} Bh5 {[%emt 0:00:05]} 10. Nbd2 {[%emt 0:02:07]} Nb6 {[%emt 0:02:01]} 11. Bb3 {[%emt 0:00:16]} Qxd3 {[%emt 0:04:47]} 12. Nxe5 {[%emt 0:00:44]} Qg3 {[%emt 0:03:03]} 13. Qxh5 {[%emt 0:02:15]} Qxf2+ {[%emt 0:01:32]} 14. Kh2 {[%emt 0:00:22]} Bd6 {[%emt 0:21:10]} 15. Ndf3 {[%emt 0:07:00]} Nxe5 {[%emt 0:02:00]} 16. Rxe5 {[%emt 0:01:25]} Nd7 {[%emt 0:07:23]} 17. Bf4 {[%emt 0:06:19]} Nxe5 {[%emt 0:05:52]} 18. Bxe5 {[%emt 0:11:20]} Bxe5+ {[%emt 0:00:21]} 19. Qxe5 {[%emt 0:15:38]} Rae8 {[%emt 0:04:30]} 20. Bxf7+ {[%emt 0:22:35]} Kxf7 {[%emt 0:00:05]} 21. Qd5+ {[%emt 0:00:12]} Kg6 {[%emt 0:00:19]} 22. Qg5+ {[%emt 0:15:07]} Kf7 {[%emt 0:00:10]} 23. Qd5+ {[%emt 0:00:20]} Kg6 {[%emt 0:00:06]} 24. Qg5+ {[%emt 0:07:04]} Kf7 {[%emt 0:00:06]} 1/2-1/2

[Event "FIDE WCCC Open-10 2024"]
[Site "Montesilvano"]
[Date "2024.11.20"]
[Round "6.45"]
[White "Kaloh, Edvard"]
[Black "DAmato, Raffaele"]
[Result "1/2-1/2"]
[ECO "C01"]
[WhiteElo "1506"]
[BlackElo "1695"]
[Annotator "NA RC"]
[PlyCount "93"]
[EventDate "2024.11.18"]
[EventType "swiss"]
[EventCountry "ITA"]
[SourceTitle "playchess.com"]
[Source "ChessBase"]
[SourceQuality "1"]
[TimeControl "5400+30"]

1. e4 {[%emt 0:04:48]} e6 {[%emt 0:00:01]} 2. d4 {[%emt 0:00:08]} d5 {[%emt 0:00:03]} 3. exd5 {[%emt 0:00:05]} exd5 {[%emt 0:00:02]} 4. Bd3 {[%emt 0:00:10]} Nf6 {[%emt 0:00:26]} 5. Nf3 {[%emt 0:00:08]} Be7 {[%emt 0:00:49]} 6. O-O {[%emt 0:00:16]} O-O {[%emt 0:00:11]} 7. Nbd2 {[%emt 0:00:35]} Bg4 {[%emt 0:00:43]} 8. Re1 {[%emt 0:01:09]} Nc6 {[%emt 0:00:44]} 9. c3 {[%emt 0:00:13]} Re8 {[%emt 0:06:17]} 10. h3 {[%emt 0:00:33]} Bh5 {[%emt 0:03:27]} 11. g4 {[%emt 0:00:44]} Bg6 {[%emt 0:00:07]} 12. Bxg6 {[%emt 0:00:29]} hxg6 {[%emt 0:00:47]} 13. Ne5 {[%emt 0:01:40]} Bd6 {[%emt 0:01:11]} 14. f4 {[%emt 0:00:37]} Bxe5 {[%emt 0:05:41]} 15. fxe5 {[%emt 0:00:57]} Nh7 {[%emt 0:00:12]} 16. Nf3 {[%emt 0:00:28]} f6 {[%emt 0:03:26]} 17. Qc2 {[%emt 0:06:52]} fxe5 {[%emt 0:01:23]} 18. dxe5 {[%emt 0:01:18]} Rf8 {[%emt 0:02:24]} 19. Kg2 {[%emt 0:02:06]} Qe8 {[%emt 0:02:00]} 20. Qb3 {[%emt 0:01:08]} Qf7 {[%emt 0:00:30]} 21. Qd1 {[%emt 0:01:26]} Rae8 {[%emt 0:08:38]} 22. Rf1 {[%emt 0:00:58]} Nxe5 {[%emt 0:04:27]} 23. Nxe5 {[%emt 0:03:59]} Qxf1+ {[%emt 0:00:12]} 24. Qxf1 {[%emt 0:00:04]} Rxf1 {[%emt 0:00:07]} 25. Kxf1 {[%emt 1:12:09]} Rxe5 {[%emt 0:00:08]} 26. Bf4 {[%emt 0:00:00]} Re7 {[%emt 0:00:47]} 27. Bg3 {[%emt 0:00:00]} c6 {[%emt 0:00:53]} 28. Kf2 {[%emt 0:00:00]} Ng5 {[%emt 0:00:54]} 29. h4 {[%emt 0:00:00]} Ne4+ {[%emt 0:00:34]} 30. Kf3 {[%emt 0:00:00]} Nxg3 {[%emt 0:02:05]} 31. Kxg3 {[%emt 0:00:00]} Re2 {[%emt 0:00:05]} 32. Rb1 {[%emt 0:00:00]} Kf7 {[%emt 0:00:47]} 33. Kf3 {[%emt 0:00:00]} Rd2 {[%emt 0:00:19]} 34. Kf4 {[%emt 0:00:00]} Re2 {[%emt 0:02:26]} 35. Kf3 {[%emt 0:00:00]} Re4 {[%emt 0:00:42]} 36. Rf1 {[%emt 0:00:00]} Ke7 {[%emt 0:00:35]} 37. b3 {[%emt 0:00:00]} b5 {[%emt 0:00:38]} 38. Rg1 {[%emt 0:00:00]} a5 {[%emt 0:01:23]} 39. h5 {[%emt 0:00:00]} gxh5 {[%emt 0:00:17]} 40. gxh5 {[%emt 0:00:00]} Kf6 {[%emt 0:00:54]} 41. Rg6+ {[%emt 0:00:00]} Kf7 {[%emt 0:02:45]} 42. Rxc6 {[%emt 0:00:00]} b4 {[%emt 0:00:55]} 43. cxb4 {[%emt 0:00:00]} axb4 {[%emt 0:00:24]} 44. Rc5 {[%emt 0:00:00]} Ke6 {[%emt 0:00:55]} 45. Rc7 {[%emt 0:00:00]} Rh4 {[%emt 0:00:57]} 46. Rxg7 {[%emt 0:00:00]} Rxh5 {[%emt 0:00:05]} 47. Rg4 {[%emt 0:11:00]} 1/2-1/2

[Event "FIDE WCCC Open-10 2024"]
[Site "Montesilvano"]
[Date "2024.11.20"]
[Round "6.46"]
[White "Shrubok, Herman"]
[Black "Lenkov, Stanislav"]
[Result "1/2-1/2"]
[ECO "B34"]
[WhiteElo "1477"]
[BlackElo "1693"]
[Annotator "NA RC"]
[PlyCount "51"]
[EventDate "2024.11.18"]
[EventType "swiss"]
[EventCountry "ITA"]
[SourceTitle "playchess.com"]
[Source "ChessBase"]
[SourceQuality "1"]
[TimeControl "5400+30"]

1. e4 {[%emt 0:00:18]} c5 {[%emt 0:00:58]} 2. Nf3 {[%emt 0:01:15]} Nc6 {[%emt 0:00:58]} 3. d4 {[%emt 0:01:30]} cxd4 {[%emt 0:01:06]} 4. Nxd4 {[%emt 0:00:12]} g6 {[%emt 0:01:44]} 5. Nc3 {[%emt 0:01:48]} Bg7 {[%emt 0:00:48]} 6. Be3 {[%emt 0:02:35]} Nf6 {[%emt 0:02:07]} 7. Be2 {[%emt 0:03:31]} O-O {[%emt 0:01:48]} 8. O-O {[%emt 0:02:29]} d5 {[%emt 0:01:05]} 9. exd5 {[%emt 0:10:27]} Nxd5 {[%emt 0:01:23]} 10. Nxd5 {[%emt 0:08:33]} Nxd4 {[%emt 0:00:46]} 11. Bxd4 {[%emt 0:02:30]} Qxd5 {[%emt 0:01:30]} 12. Bxg7 {[%emt 0:00:30]} Qxd1 {[%emt 0:00:11]} 13. Rfxd1 {[%emt 0:00:30]} Kxg7 {[%emt 0:00:19]} 14. c4 {[%emt 0:01:30]} Be6 {[%emt 0:05:34]} 15. b3 {[%emt 0:01:30]} a5 {[%emt 0:01:59]} 16. Bf3 {[%emt 0:00:01]} Rab8 {[%emt 0:00:00]} 17. Kf1 {[%emt 0:00:12]} h5 {[%emt 0:03:08]} 18. Ke2 {[%emt 0:03:17]} Kf6 {[%emt 0:00:58]} 19. h4 {[%emt 0:01:30]} Rfc8 {[%emt 0:02:40]} 20. a4 {[%emt 0:02:30]} b6 {[%emt 0:00:44]} 21. Ke3 {[%emt 0:01:30]} Rd8 {[%emt 0:01:10]} 22. Rxd8 {[%emt 0:00:30]} Rxd8 {[%emt 0:00:06]} 23. Rd1 {[%emt 0:00:30]} Rxd1 {[%emt 0:00:18]} 24. Bxd1 {[%emt 0:00:30]} Ke5 {[%emt 0:00:09]} 25. Bc2 {[%emt 0:00:30]} Bf5 {[%emt 0:00:16]} 26. Bd1 {[%emt 0:53:22]} 1/2-1/2